[Event "8th Montevideo Open 2025"]
[Site "Montevideo"]
[Date "2025.02.04"]
[Round "4.22"]
[White "Pascualvaca, Federico"]
[Black "Izquierdo, Sebastian"]
[Result "0-1"]
[Annotator "RC"]
[ECO "B01"]
[WhiteElo "1794"]
[BlackElo "1970"]
[PlyCount "124"]
[EventDate "2025.02.01"]
[EventType "swiss"]
[EventCountry "URU"]
[SourceTitle "playchess.com"]
[Source "ChessBase"]
[SourceQuality "1"]
[TimeControl "5400+30"]

1. e4 {[%emt 0:00:16]} d5 {[%emt 0:12:35]} 2. exd5 {[%emt 0:00:59]} Nf6 {[%emt 0:00:10]} 3. Nf3 {[%emt 0:01:16]} Nxd5 {[%emt 0:00:22]} 4. d4 {[%emt 0:00:44]} Bg4 {[%emt 0:00:17]} 5. h3 {[%emt 0:00:58]} Bh5 {[%emt 0:00:14]} 6. c4 {[%emt 0:01:24]} Nb6 {[%emt 0:00:22]} 7. g4 {[%emt 0:04:20]} Bg6 {[%emt 0:00:05]} 8. Qb3 {[%emt 0:00:09]} Be4 {[%emt 0:04:37]} 9. Nbd2 {[%emt 0:01:17]} Bc6 {[%emt 0:03:40]} 10. d5 {[%emt 0:03:56]} Ba4 {[%emt 0:01:30]} 11. Qc3 {[%emt 0:02:18]} Bd7 {[%emt 0:00:34]} 12. Ne5 {[%emt 0:04:00]} e6 {[%emt 0:01:11]} 13. Qf3 {[%emt 0:02:24]} Qf6 {[%emt 0:00:05]} 14. Qxf6 {[%emt 0:04:02]} gxf6 {[%emt 0:00:08]} 15. Nxd7 {[%emt 0:04:21]} N8xd7 {[%emt 0:01:17]} 16. Bg2 {[%emt 0:01:59]} O-O-O {[%emt 0:00:07]} 17. O-O {[%emt 0:04:41]} Bb4 {[%emt 0:02:25]} 18. a3 {[%emt 0:05:05]} Bxd2 {[%emt 0:00:27]} 19. Bxd2 {[%emt 0:00:08]} Nxc4 {[%emt 0:00:15]} 20. Bc3 {[%emt 0:00:16]} e5 {[%emt 0:00:18]} 21. Rac1 {[%emt 0:02:58]} Kb8 {[%emt 0:00:34]} 22. Rfd1 {[%emt 0:01:48]} Ndb6 {[%emt 0:00:57]} 23. Rd3 {[%emt 0:09:08]} h5 {[%emt 0:06:37]} 24. f4 {[%emt 0:03:26]} hxg4 {[%emt 0:00:54]} 25. hxg4 {[%emt 0:01:14]} Rhe8 {[%emt 0:12:31]} 26. Re1 {[%emt 0:04:30]} Nd7 {[%emt 0:06:10]} 27. b3 {[%emt 0:16:49]} Nxa3 {[%emt 0:04:33]} 28. Rh3 {[%emt 0:03:39]} Nb5 {[%emt 0:00:55]} 29. Bb2 {[%emt 0:01:13]} Rg8 {[%emt 0:16:14]} 30. g5 {[%emt 0:05:47]} exf4 {[%emt 0:02:06]} 31. gxf6 {[%emt 0:01:46]} Rg6 {[%emt 0:00:08]} 32. Kf2 {[%emt 0:04:18]} Nxf6 {[%emt 0:00:33]} 33. Re7 {[%emt 0:01:14]} Ng4+ {[%emt 0:00:59]} 34. Ke2 {[%emt 0:01:41]} f5 {[%emt 0:01:15]} 35. Rd7 {[%emt 0:01:52]} Re8+ {[%emt 0:02:16]} 36. Kd2 {[%emt 0:01:22]} a6 {[%emt 0:03:12]} 37. Bf1 {[%emt 0:00:58]} Nd6 {[%emt 0:04:22]} 38. Bd3 {[%emt 0:00:40]} Nf2 {[%emt 0:02:01]} 39. Rhh7 {[%emt 0:00:31]} Rg2 {[%emt 0:01:27]} 40. Bd4 {[%emt 0:00:32]} Nxd3+ {[%emt 0:04:40]} 41. Kxd3 {[%emt 0:00:23]} Nb5 {[%emt 0:00:12]} 42. Rhe7 {[%emt 0:00:25]} Rg3+ {[%emt 0:01:14]} 43. Kc4 {[%emt 0:00:31]} Rgg8 {[%emt 0:01:41]} 44. Be5 {[%emt 0:00:37]} Rxe7 {[%emt 0:00:19]} 45. Rxe7 {[%emt 0:00:07]} f3 {[%emt 0:00:23]} 46. Kd3 {[%emt 0:00:27]} Rd8 {[%emt 0:00:39]} 47. Ke3 {[%emt 0:00:58]} Rxd5 {[%emt 0:00:20]} 48. Kxf3 {[%emt 0:00:20]} Rd3+ {[%emt 0:00:09]} 49. Kf4 {[%emt 0:00:17]} Rxb3 {[%emt 0:00:19]} 50. Kxf5 {[%emt 0:00:18]} Ka7 {[%emt 0:00:54]} 51. Bf4 {[%emt 0:00:51]} Kb6 {[%emt 0:00:55]} 52. Ke6 {[%emt 0:00:44]} Rf3 {[%emt 0:00:38]} 53. Ke5 {[%emt 0:00:30]} Nd6 {[%emt 0:00:43]} 54. Re6 {[%emt 0:00:25]} Kc6 {[%emt 0:01:10]} 55. Rf6 {[%emt 0:00:18]} a5 {[%emt 0:00:48]} 56. Kd4 {[%emt 0:00:19]} b5 {[%emt 0:00:24]} 57. Rf8 {[%emt 0:00:35]} Rf1 {[%emt 0:00:55]} 58. Kc3 {[%emt 0:00:31]} b4+ {[%emt 0:00:33]} 59. Kc2 {[%emt 0:00:15]} Rf3 {[%emt 0:00:48]} 60. Kb2 {[%emt 0:00:41]} Nc4+ {[%emt 0:00:31]} 61. Kc2 {[%emt 0:00:23]} b3+ {[%emt 0:00:18]} 62. Kd1 {[%emt 0:00:14]} b2 {[%emt 0:00:40]} 0-1

[Event "8th Montevideo Open 2025"]
[Site "Montevideo"]
[Date "2025.02.04"]
[Round "4.23"]
[White "Gonzalez Prestes, Marcos"]
[Black "Guillen Ramirez, Jose Antonio"]
[Result "1/2-1/2"]
[Annotator "RC"]
[ECO "D02"]
[WhiteElo "1596"]
[BlackElo "2114"]
[PlyCount "169"]
[EventDate "2025.02.01"]
[EventType "swiss"]
[EventCountry "URU"]
[SourceTitle "playchess.com"]
[Source "ChessBase"]
[SourceQuality "1"]
[TimeControl "5400+30"]

1. d4 {[%emt 0:00:04]} Nf6 {[%emt 0:21:46]} 2. Nf3 {[%emt 0:00:22]} d5 {[%emt 0:01:02]} 3. Bf4 {[%emt 0:00:52]} e6 {[%emt 0:06:28]} 4. e3 {[%emt 0:00:41]} c5 {[%emt 0:00:12]} 5. c3 {[%emt 0:01:07]} Nc6 {[%emt 0:00:40]} 6. Bd3 {[%emt 0:01:18]} a6 {[%emt 0:00:58]} 7. a4 {[%emt 0:02:06]} b6 {[%emt 0:06:06]} 8. h3 {[%emt 0:02:22]} Bb7 {[%emt 0:00:34]} 9. Nbd2 {[%emt 0:00:44]} Bd6 {[%emt 0:00:49]} 10. Ne5 {[%emt 0:03:19]} h6 {[%emt 0:05:12]} 11. Qe2 {[%emt 0:04:30]} c4 {[%emt 0:07:39]} 12. Bc2 {[%emt 0:02:51]} b5 {[%emt 0:14:36]} 13. e4 {[%emt 0:09:32]} Be7 {[%emt 0:11:44]} 14. Nxc6 Bxc6 {[%emt 0:00:03]} 15. e5 {[%emt 0:09:17]} Nd7 {[%emt 0:00:01]} 16. Nf3 {[%emt 0:02:45]} Nb6 {[%emt 0:04:37]} 17. axb5 {[%emt 0:05:06]} Bxb5 {[%emt 0:00:41]} 18. Bd2 {[%emt 0:06:41]} Qc7 {[%emt 0:00:19]} 19. Nh2 {[%emt 0:03:08]} Qd7 {[%emt 0:05:48]} 20. Qg4 {[%emt 0:02:50]} g6 {[%emt 0:00:32]} 21. Qd1 {[%emt 0:05:21]} h5 {[%emt 0:00:24]} 22. Nf3 {[%emt 0:01:07]} Kd8 {[%emt 0:00:09]} 23. Ng5 {[%emt 0:01:56]} Bxg5 {[%emt 0:00:34]} 24. Bxg5+ {[%emt 0:00:11]} Kc7 {[%emt 0:00:03]} 25. h4 {[%emt 0:01:39]} Rhb8 {[%emt 0:02:36]} 26. O-O {[%emt 0:01:12]} Nc8 {[%emt 0:01:20]} 27. Qd2 {[%emt 0:00:53]} Nb6 {[%emt 0:00:49]} 28. Qd1 {[%emt 0:01:19]} Nc8 {[%emt 0:00:05]} 29. Qd2 {[%emt 0:00:42]} Bc6 {[%emt 0:00:26]} 30. Rfb1 {[%emt 0:00:46]} Rb6 {[%emt 0:01:32]} 31. Bf6 {[%emt 0:01:41]} a5 {[%emt 0:01:15]} 32. Kf1 {[%emt 0:00:50]} a4 {[%emt 0:01:10]} 33. Ra3 {[%emt 0:00:49]} Rab8 {[%emt 0:01:13]} 34. Ra2 {[%emt 0:02:05]} Na7 {[%emt 0:00:38]} 35. Qd1 {[%emt 0:00:47]} Ra6 {[%emt 0:00:29]} 36. Bg5 {[%emt 0:01:35]} Nc8 {[%emt 0:01:28]} 37. Ke1 {[%emt 0:01:41]} Nb6 {[%emt 0:00:22]} 38. Ra3 {[%emt 0:00:20]} Bb5 {[%emt 0:00:31]} 39. Kf1 {[%emt 0:01:10]} Rba8 {[%emt 0:00:24]} 40. Bc1 {[%emt 0:01:45]} Nc8 {[%emt 0:00:16]} 41. Ke1 {[%emt 0:00:43]} Na7 {[%emt 0:00:07]} 42. Rba1 {[%emt 0:01:48]} Nc8 {[%emt 0:00:58]} 43. Kf1 {[%emt 0:00:59]} Nb6 {[%emt 0:00:03]} 44. Ke1 {[%emt 0:00:56]} Bc6 {[%emt 0:00:18]} 45. Kf1 {[%emt 0:00:39]} Ra5 {[%emt 0:00:01]} 46. Rb1 {[%emt 0:01:16]} Nc8 {[%emt 0:00:22]} 47. Rba1 {[%emt 0:00:31]} Nb6 {[%emt 0:00:12]} 48. Rb1 {[%emt 0:00:18]} Bb5 {[%emt 0:00:06]} 49. Ke1 {[%emt 0:00:38]} R5a6 {[%emt 0:00:09]} 50. Rba1 {[%emt 0:00:37]} Nc8 {[%emt 0:00:12]} 51. Rb1 {[%emt 0:00:27]} Ne7 {[%emt 0:00:04]} 52. g3 {[%emt 0:01:15]} Nc6 {[%emt 0:01:38]} 53. Rba1 {[%emt 0:00:18]} Nd8 {[%emt 0:00:30]} 54. Rb1 {[%emt 0:00:27]} Nb7 {[%emt 0:00:18]} 55. Rba1 {[%emt 0:00:30]} Bc6 {[%emt 0:01:42]} 56. Kf1 {[%emt 0:00:26]} Nd8 {[%emt 0:00:24]} 57. Ke1 {[%emt 0:01:06]} Bb5 {[%emt 0:00:13]} 58. Kf1 {[%emt 0:00:31]} Kb6 {[%emt 0:00:26]} 59. Ke1 {[%emt 0:00:41]} Nb7 {[%emt 0:00:12]} 60. Kf1 {[%emt 0:00:26]} R8a7 {[%emt 0:01:17]} 61. Ke1 {[%emt 0:01:02]} Qe8 {[%emt 0:00:22]} 62. Kf1 {[%emt 0:00:38]} Ra8 {[%emt 0:00:25]} 63. Ke1 {[%emt 0:00:33]} Nd8 {[%emt 0:00:14]} 64. Kf1 {[%emt 0:00:17]} Ra5 {[%emt 0:00:05]} 65. Ke1 {[%emt 0:00:44]} R8a6 {[%emt 0:00:03]} 66. Kf1 {[%emt 0:00:20]} Nc6 {[%emt 0:00:39]} 67. Ke1 {[%emt 0:00:54]} Na7 {[%emt 0:00:02]} 68. Kf1 {[%emt 0:01:02]} Nc8 {[%emt 0:00:11]} 69. Ke1 {[%emt 0:00:34]} Kb7 {[%emt 0:00:14]} 70. Kf1 {[%emt 0:00:38]} Nb6 {[%emt 0:00:02]} 71. Ke1 {[%emt 0:00:26]} Ra8 {[%emt 0:00:14]} 72. Kf1 {[%emt 0:00:22]} R5a6 {[%emt 0:00:30]} 73. Ke1 {[%emt 0:00:18]} Qf8 {[%emt 0:00:26]} 74. Kf1 {[%emt 0:00:28]} Be8 {[%emt 0:00:05]} 75. Ke1 {[%emt 0:00:34]} f6 {[%emt 0:00:12]} 76. f4 {[%emt 0:00:30]} R6a7 {[%emt 0:00:39]} 77. Ke2 {[%emt 0:00:50]} Kc7 {[%emt 0:00:47]} 78. Ke1 {[%emt 0:00:34]} Ra5 {[%emt 0:01:36]} 79. Qe2 {[%emt 0:00:41]} f5 {[%emt 0:00:54]} 80. Qd1 {[%emt 0:00:41]} Bb5 {[%emt 0:00:02]} 81. Qe2 {[%emt 0:00:15]} R5a6 {[%emt 0:00:04]} 82. Qd1 {[%emt 0:00:10]} Qb8 {[%emt 0:00:28]} 83. Kf2 {[%emt 0:00:22]} Qa7 {[%emt 0:00:08]} 84. Ke1 {[%emt 0:02:33]} Kb7 {[%emt 0:01:48]} 85. Kf2 {[%emt 0:00:10]} 1/2-1/2

[Event "8th Montevideo Open 2025"]
[Site "Montevideo"]
[Date "2025.02.04"]
[Round "4.24"]
[White "Durante, Aurelio"]
[Black "Martinez Tagliafico, Sergio"]
[Result "1-0"]
[Annotator "NA RC"]
[ECO "B01"]
[WhiteElo "1950"]
[BlackElo "1831"]
[PlyCount "59"]
[EventDate "2025.02.01"]
[EventType "swiss"]
[EventCountry "URU"]
[SourceTitle "playchess.com"]
[Source "ChessBase"]
[SourceQuality "1"]
[TimeControl "5400+30"]

1. e4 {[%emt 0:00:01]} d5 {[%emt 0:01:07]} 2. exd5 {[%emt 0:00:30]} Qxd5 {[%emt 0:12:49]} 3. Nf3 {[%emt 0:01:42]} Bg4 {[%emt 0:01:00]} 4. Be2 {[%emt 0:00:04]} Nc6 {[%emt 0:01:53]} 5. O-O {[%emt 0:00:45]} e5 {[%emt 0:00:17]} 6. Nc3 {[%emt 0:00:15]} Qd6 {[%emt 0:00:30]} 7. d3 {[%emt 0:00:30]} a6 {[%emt 0:00:30]} 8. Re1 {[%emt 0:00:30]} O-O-O {[%emt 0:00:30]} 9. a3 {[%emt 0:00:30]} f5 {[%emt 0:02:41]} 10. h3 {[%emt 0:08:11]} Bh5 {[%emt 0:08:16]} 11. Nxe5 {[%emt 0:08:17]} Qxe5 {[%emt 0:00:30]} 12. Bxh5 {[%emt 0:00:30]} Qf6 {[%emt 0:00:30]} 13. Bf3 {[%emt 0:00:30]} Bd6 {[%emt 0:00:30]} 14. Bxc6 {[%emt 0:00:30]} bxc6 {[%emt 0:00:30]} 15. Qe2 {[%emt 0:00:30]} Qh4 {[%emt 0:13:05]} 16. Qe6+ {[%emt 0:08:04]} Kb7 {[%emt 0:00:30]} 17. Qb3+ {[%emt 0:00:30]} Kc8 {[%emt 0:01:01]} 18. Qa4 {[%emt 0:00:30]} Qf6 {[%emt 0:00:00]} 19. Qxa6+ {[%emt 0:00:30]} Kd7 {[%emt 0:05:18]} 20. Qc4 {[%emt 0:02:42]} Ne7 {[%emt 0:00:30]} 21. Bf4 {[%emt 0:00:30]} g5 {[%emt 0:00:30]} 22. Bxd6 {[%emt 0:00:30]} cxd6 {[%emt 0:00:30]} 23. Re2 {[%emt 0:00:30]} h5 {[%emt 0:00:30]} 24. Rae1 {[%emt 0:00:30]} Rh7 {[%emt 0:00:30]} 25. Re6 {[%emt 0:00:30]} Qf8 {[%emt 0:00:30]} 26. Qa6 {[%emt 0:00:30]} Rc8 {[%emt 0:00:30]} 27. Na4 {[%emt 0:00:30]} Rc7 {[%emt 0:00:30]} 28. Nb6+ {[%emt 0:00:30]} Ke8 {[%emt 0:00:30]} 29. Qa8+ {[%emt 0:00:30]} Kf7 {[%emt 0:00:30]} 30. Rf6+ {[%emt 0:00:30]} 1-0